[Event "GrandPrix_29.05"]
[Site "Chess.com"]
[Date "2020.05.29"]
[Round "3"]
[White "temus_galaktionov"]
[Black "DanielDardha2005"]
[Result "1-0"]
[WhiteElo "2305"]
[BlackElo "2208"]
[TimeControl "600+2"]
[EndTime "10:30:25 PDT"]
[Termination "temus_galaktionov won by resignation"]

1. d4 {[%clk 0:10:01.9]} 1... Nf6 {[%clk 0:09:58.3]} 2. Nf3 {[%clk 0:10:03.3]}
2... e6 {[%clk 0:09:58.6]} 3. c4 {[%clk 0:10:04]} 3... Bb4+ {[%clk 0:09:58.7]}
4. Nbd2 {[%clk 0:10:04.6]} 4... d5 {[%clk 0:09:55.4]} 5. a3 {[%clk 0:10:04.5]}
5... Be7 {[%clk 0:09:49.7]} 6. e3 {[%clk 0:10:05.2]} 6... O-O {[%clk 0:09:48.7]}
7. b4 {[%clk 0:10:05.7]} 7... b6 {[%clk 0:09:37.7]} 8. c5 {[%clk 0:09:58.1]}
8... a5 {[%clk 0:09:34.6]} 9. Bb2 {[%clk 0:09:56.7]} 9... c6 {[%clk 0:09:03.6]}
10. Bd3 {[%clk 0:09:46.1]} 10... Ba6 {[%clk 0:09:03.3]} 11. Bxa6 {[%clk
0:09:33.1]} 11... Nxa6 {[%clk 0:09:03.7]} 12. Bc3 {[%clk 0:09:31.6]} 12... Nd7
{[%clk 0:08:30.9]} 13. O-O {[%clk 0:09:30.6]} 13... Nc7 {[%clk 0:08:17.7]} 14.
Qc2 {[%clk 0:09:26.5]} 14... Nb5 {[%clk 0:08:13.4]} 15. Bb2 {[%clk 0:09:22.9]}
15... axb4 {[%clk 0:08:13]} 16. axb4 {[%clk 0:09:23.5]} 16... Qc7 {[%clk
0:08:14.4]} 17. e4 {[%clk 0:09:12.5]} 17... dxe4 {[%clk 0:07:57.7]} 18. Nxe4
{[%clk 0:09:14.4]} 18... Nf6 {[%clk 0:07:55.3]} 19. Ne5 {[%clk 0:09:07.7]} 19...
Qb7 {[%clk 0:06:55.7]} 20. cxb6 {[%clk 0:08:03.6]} 20... Rxa1 {[%clk 0:06:19.6]}
21. Rxa1 {[%clk 0:07:40.7]} 21... Rc8 {[%clk 0:06:20.3]} 22. Nc5 {[%clk
0:07:29.9]} 22... Qxb6 {[%clk 0:06:12.6]} 23. Ra6 {[%clk 0:07:29.3]} 23... Qd8
{[%clk 0:05:54.7]} 24. Nxc6 {[%clk 0:07:27.8]} 24... Qe8 {[%clk 0:05:55.2]} 25.
Nxe7+ {[%clk 0:07:22.8]} 25... Qxe7 {[%clk 0:05:57.1]} 26. h3 {[%clk 0:07:12.8]}
26... Nd5 {[%clk 0:05:52.1]} 27. Qa4 {[%clk 0:07:10.2]} 27... Rb8 {[%clk
0:05:17]} 28. Ra8 {[%clk 0:06:24.6]} 28... Qe8 {[%clk 0:05:16.5]} 29. Rxb8
{[%clk 0:06:18.5]} 29... Qxb8 {[%clk 0:05:18.4]} 30. Qa5 {[%clk 0:06:14.2]}
30... Nbc7 {[%clk 0:04:33.6]} 31. Ba3 {[%clk 0:06:01.5]} 31... h5 {[%clk
0:04:22.8]} 32. Nd7 {[%clk 0:04:29.6]} 32... Qd8 {[%clk 0:04:18.7]} 33. Nb6
{[%clk 0:04:07.8]} 33... Nc3 {[%clk 0:03:07.9]} 34. Bb2 {[%clk 0:03:20.3]} 34...
Ne2+ {[%clk 0:02:48.2]} 35. Kf1 {[%clk 0:03:08.9]} 35... Nxd4 {[%clk 0:02:48.9]}
36. Qxh5 {[%clk 0:02:49.8]} 36... Nf5 {[%clk 0:02:24.2]} 37. Qe2 {[%clk
0:02:45.3]} 37... Qd6 {[%clk 0:02:22.2]} 38. Nc4 {[%clk 0:02:35.6]} 38... Qxb4
{[%clk 0:02:08.7]} 39. g3 {[%clk 0:02:32.7]} 39... Nd5 {[%clk 0:01:59.1]} 40.
Kg1 {[%clk 0:02:30.9]} 40... Qc5 {[%clk 0:01:46.8]} 41. Kh2 {[%clk 0:02:24.6]}
41... Qc6 {[%clk 0:01:36.8]} 42. Ne5 {[%clk 0:02:20.9]} 42... Qb7 {[%clk
0:01:37.4]} 43. Nf3 {[%clk 0:02:18.6]} 43... Qb6 {[%clk 0:01:27.3]} 44. Kg2
{[%clk 0:02:16.5]} 44... f6 {[%clk 0:01:21.4]} 45. Ba3 {[%clk 0:02:12.8]} 45...
Qc6 {[%clk 0:01:12.1]} 46. Kh2 {[%clk 0:02:11.7]} 46... e5 {[%clk 0:01:10.6]}
47. Qe4 {[%clk 0:02:07.4]} 47... Qe6 {[%clk 0:01:04.5]} 48. g4 {[%clk
0:02:04.5]} 48... Nd6 {[%clk 0:00:56.4]} 49. Bxd6 {[%clk 0:02:02.2]} 49... Qxd6
{[%clk 0:00:58.3]} 50. Nh4 {[%clk 0:02:02]} 50... Nf4 {[%clk 0:00:54]} 51. Ng2
{[%clk 0:01:51]} 51... Ne6 {[%clk 0:00:45]} 52. Qa8+ {[%clk 0:01:43.8]} 52...
Kh7 {[%clk 0:00:44.9]} 53. Qe4+ {[%clk 0:01:43.5]} 53... g6 {[%clk 0:00:44.1]}
54. h4 {[%clk 0:01:34.6]} 54... Qd4 {[%clk 0:00:27.9]} 55. Qxd4 {[%clk 0:01:26]}
55... exd4 {[%clk 0:00:29.2]} 56. Kg3 {[%clk 0:01:22.3]} 56... Kh6 {[%clk
0:00:19.8]} 57. Ne1 {[%clk 0:01:18.9]} 57... Nc5 {[%clk 0:00:16.4]} 58. Kf4
{[%clk 0:01:15.2]} 58... g5+ {[%clk 0:00:13]} 59. hxg5+ {[%clk 0:01:10.7]} 59...
fxg5+ {[%clk 0:00:14.9]} 60. Kf3 {[%clk 0:01:04.6]} 60... Kg6 {[%clk 0:00:15.7]}
61. Ke2 {[%clk 0:00:53.8]} 61... Kf6 {[%clk 0:00:15.5]} 62. Nf3 {[%clk
0:00:52.7]} 62... d3+ {[%clk 0:00:07.9]} 63. Ke3 {[%clk 0:00:53.6]} 63... Kg6
{[%clk 0:00:06.2]} 64. Ne5+ {[%clk 0:00:52.5]} 64... Kf6 {[%clk 0:00:07.7]} 65.
Nxd3 {[%clk 0:00:54.3]} 65... Ne6 {[%clk 0:00:08]} 66. Ke4 {[%clk 0:00:52.8]}
66... Nc7 {[%clk 0:00:09]} 67. Ne5 {[%clk 0:00:50.6]} 67... Ke6 {[%clk 0:00:10]}
68. Nf3 {[%clk 0:00:47.5]} 68... Kf6 {[%clk 0:00:11.1]} 69. Nd4 {[%clk
0:00:49.4]} 69... Ne8 {[%clk 0:00:10.4]} 70. Kd5 {[%clk 0:00:44.4]} 70... Nc7+
{[%clk 0:00:10.8]} 71. Kd6 {[%clk 0:00:44]} 71... Ne8+ {[%clk 0:00:12.1]} 72.
Kd7 {[%clk 0:00:43.7]} 72... Kf7 {[%clk 0:00:13.2]} 73. f3 {[%clk 0:00:41.7]}
73... Ng7 {[%clk 0:00:14.3]} 74. Kd6 {[%clk 0:00:34.2]} 74... Ne8+ {[%clk
0:00:14.5]} 75. Ke5 {[%clk 0:00:32]} 75... Kg6 {[%clk 0:00:12.3]} 76. Ne6 {[%clk
0:00:29.5]} 76... Kh6 {[%clk 0:00:13.2]} 77. Kf5 {[%clk 0:00:23.6]} 77... Nd6+
{[%clk 0:00:11.3]} 78. Kf6 {[%clk 0:00:25.1]} 78... Nb5 {[%clk 0:00:05]} 79.
Nxg5 {[%clk 0:00:26.4]} 79... Nd4 {[%clk 0:00:06.4]} 80. Nf7+ {[%clk 0:00:20.4]}
80... Kh7 {[%clk 0:00:06.8]} 81. f4 {[%clk 0:00:21.4]} 81... Nb5 {[%clk
0:00:04.9]} 82. g5 {[%clk 0:00:20.2]} 82... Nc7 {[%clk 0:00:06.8]} 83. g6+
{[%clk 0:00:18.7]} 83... Kg8 {[%clk 0:00:08.3]} 84. Nh6+ {[%clk 0:00:18.7]} 1-0

[Event "GrandPrix_29.05"]
[Site "Chess.com"]
[Date "2020.05.29"]
[Round "3"]
[White "Tyoma88888"]
[Black "Sam_ChessMood"]
[Result "1/2-1/2"]
[WhiteElo "2225"]
[BlackElo "2374"]
[TimeControl "600+2"]
[EndTime "10:30:42 PDT"]
[Termination "Game drawn by repetition"]

1. e4 {[%clk 0:10:01.9]} 1... c6 {[%clk 0:09:52.2]} 2. d4 {[%clk 0:10:02.2]}
2... d5 {[%clk 0:09:53.1]} 3. exd5 {[%clk 0:10:03]} 3... cxd5 {[%clk 0:09:53.8]}
4. Bd3 {[%clk 0:10:04.2]} 4... Nf6 {[%clk 0:09:50.9]} 5. c3 {[%clk 0:10:05.2]}
5... Bg4 {[%clk 0:09:50.5]} 6. Qb3 {[%clk 0:10:00.4]} 6... Qc7 {[%clk
0:09:45.5]} 7. Ne2 {[%clk 0:09:50]} 7... Bxe2 {[%clk 0:06:59.8]} 8. Bxe2 {[%clk
0:09:48.1]} 8... Nc6 {[%clk 0:07:00.6]} 9. O-O {[%clk 0:09:45.3]} 9... e6 {[%clk
0:06:55.5]} 10. Bg5 {[%clk 0:09:39.1]} 10... Bd6 {[%clk 0:06:36.4]} 11. h3
{[%clk 0:09:05]} 11... O-O {[%clk 0:04:53.2]} 12. Nd2 {[%clk 0:07:42.8]} 12...
Bh2+ {[%clk 0:04:37.4]} 13. Kh1 {[%clk 0:07:43]} 13... Bf4 {[%clk 0:04:38.6]}
14. Bxf4 {[%clk 0:06:58.4]} 14... Qxf4 {[%clk 0:04:37.9]} 15. Nf3 {[%clk
0:07:00.3]} 15... Rab8 {[%clk 0:04:33.7]} 16. Ne1 {[%clk 0:05:38.7]} 16... Ne4
{[%clk 0:03:43]} 17. Nd3 {[%clk 0:05:33.2]} 17... Qd6 {[%clk 0:03:43.1]} 18. Qd1
{[%clk 0:05:30]} 18... b5 {[%clk 0:03:29.3]} 19. Bf3 {[%clk 0:05:10.8]} 19...
Nf6 {[%clk 0:02:55.6]} 20. a3 {[%clk 0:05:04.4]} 20... a5 {[%clk 0:02:50.3]} 21.
b4 {[%clk 0:04:57.9]} 21... Qc7 {[%clk 0:02:30.4]} 22. Re1 {[%clk 0:04:47.8]}
22... Ne7 {[%clk 0:02:18.4]} 23. Nc5 {[%clk 0:04:45.1]} 23... Ra8 {[%clk
0:02:16.4]} 24. Qd3 {[%clk 0:04:43.8]} 24... Rfb8 {[%clk 0:02:11.4]} 25. Qe2
{[%clk 0:04:13.5]} 25... Nc8 {[%clk 0:02:02.1]} 26. g4 {[%clk 0:03:52.3]} 26...
Nd6 {[%clk 0:01:57.4]} 27. Kg2 {[%clk 0:03:44.3]} 27... Ra7 {[%clk 0:01:51.7]}
28. h4 {[%clk 0:03:30]} 28... Rba8 {[%clk 0:01:48.6]} 29. g5 {[%clk 0:02:56.8]}
29... Nfe4 {[%clk 0:01:43.7]} 30. Bxe4 {[%clk 0:02:39.8]} 30... dxe4 {[%clk
0:01:40.6]} 31. Nxe4 {[%clk 0:01:58]} 31... axb4 {[%clk 0:01:38.1]} 32. Nxd6
{[%clk 0:01:47.9]} 32... Qxd6 {[%clk 0:01:36.9]} 33. cxb4 {[%clk 0:01:48.2]}
33... Qxd4 {[%clk 0:01:15.4]} 34. Qe4 {[%clk 0:01:29.7]} 34... Qd8 {[%clk
0:00:45.6]} 35. Re3 {[%clk 0:01:24.1]} 35... Rd7 {[%clk 0:00:45.8]} 36. Qf3
{[%clk 0:00:51.5]} 36... Rd4 {[%clk 0:00:41.4]} 37. Re4 {[%clk 0:00:47]} 37...
Rd3 {[%clk 0:00:35.3]} 38. Re3 {[%clk 0:00:45.3]} 38... Rxe3 {[%clk 0:00:33.5]}
39. Qxe3 {[%clk 0:00:44.2]} 39... Rc8 {[%clk 0:00:34.4]} 40. Rc1 {[%clk
0:00:32.6]} 40... Qd5+ {[%clk 0:00:30.3]} 41. f3 {[%clk 0:00:28.9]} 41... Rxc1
{[%clk 0:00:19.4]} 42. Qxc1 {[%clk 0:00:29.8]} 42... f6 {[%clk 0:00:07]} 43.
gxf6 {[%clk 0:00:19.7]} 43... gxf6 {[%clk 0:00:08.9]} 44. Qc8+ {[%clk
0:00:10.8]} 44... Kg7 {[%clk 0:00:09.9]} 45. Qc7+ {[%clk 0:00:12.2]} 45... Kg6
{[%clk 0:00:10.4]} 46. Qc2+ {[%clk 0:00:13.3]} 46... f5 {[%clk 0:00:11.6]} 47.
Qc8 {[%clk 0:00:11.6]} 47... Qd2+ {[%clk 0:00:12.2]} 48. Kg1 {[%clk 0:00:08.6]}
48... Qe3+ {[%clk 0:00:12.6]} 49. Kg2 {[%clk 0:00:09.7]} 49... Qe2+ {[%clk
0:00:13.8]} 50. Kg1 {[%clk 0:00:11.3]} 50... Qe1+ {[%clk 0:00:14.7]} 51. Kg2
{[%clk 0:00:12.6]} 51... Qe2+ {[%clk 0:00:16.1]} 52. Kg1 {[%clk 0:00:14.1]}
52... Qxf3 {[%clk 0:00:16.2]} 53. Qh8 {[%clk 0:00:14.7]} 53... Qg3+ {[%clk
0:00:15.5]} 54. Kf1 {[%clk 0:00:16.1]} 54... Qf4+ {[%clk 0:00:16.6]} 55. Kg2
{[%clk 0:00:16.2]} 55... Qg4+ {[%clk 0:00:17.3]} 56. Kf1 {[%clk 0:00:17.6]}
56... Qd1+ {[%clk 0:00:15.5]} 57. Kg2 {[%clk 0:00:18.8]} 57... Qd2+ {[%clk
0:00:16.4]} 58. Kg1 {[%clk 0:00:19.5]} 58... Qe1+ {[%clk 0:00:11.5]} 59. Kg2
{[%clk 0:00:20.4]} 59... Qe4+ {[%clk 0:00:10.8]} 60. Kg1 {[%clk 0:00:20.3]}
60... f4 {[%clk 0:00:09.6]} 61. Qe8+ {[%clk 0:00:16.6]} 61... Kf6 {[%clk
0:00:08.9]} 62. Qh8+ {[%clk 0:00:13.5]} 62... Kf7 {[%clk 0:00:09.2]} 63. Qd8
{[%clk 0:00:05.8]} 63... Qe3+ {[%clk 0:00:08.3]} 64. Kf1 {[%clk 0:00:06.3]}
64... Qf3+ {[%clk 0:00:09.5]} 65. Kg1 {[%clk 0:00:07.2]} 65... Qg4+ {[%clk
0:00:09]} 66. Kf1 {[%clk 0:00:08.3]} 66... Qh3+ {[%clk 0:00:09.8]} 67. Kg1
{[%clk 0:00:07.8]} 67... Qe3+ {[%clk 0:00:10.9]} 68. Kf1 {[%clk 0:00:09.3]}
68... Qf3+ {[%clk 0:00:11.6]} 69. Kg1 {[%clk 0:00:10.7]} 69... Qd5 {[%clk
0:00:12.5]} 70. Qc7+ {[%clk 0:00:09.1]} 70... Kg6 {[%clk 0:00:11.8]} 71. Qxf4
{[%clk 0:00:10]} 71... Qd1+ {[%clk 0:00:08.5]} 72. Kg2 {[%clk 0:00:10.9]} 72...
Qc2+ {[%clk 0:00:09.6]} 73. Kg1 {[%clk 0:00:10.8]} 73... Qd3 {[%clk 0:00:09.1]}
74. Qg4+ {[%clk 0:00:11.1]} 74... Kf6 {[%clk 0:00:08.7]} 75. Qf4+ {[%clk
0:00:11.9]} 75... Ke7 {[%clk 0:00:08.6]} 76. Qc7+ {[%clk 0:00:12.6]} 76... Kf6
{[%clk 0:00:07.5]} 77. Qf4+ {[%clk 0:00:12.4]} 77... Qf5 {[%clk 0:00:08.3]} 78.
Qd4+ {[%clk 0:00:13.2]} 78... Qe5 {[%clk 0:00:09.6]} 79. Qf2+ {[%clk 0:00:10.9]}
79... Ke7 {[%clk 0:00:09]} 80. Qa7+ {[%clk 0:00:11.6]} 80... Kf6 {[%clk
0:00:09.2]} 81. Qxh7 {[%clk 0:00:12.9]} 81... Qg3+ {[%clk 0:00:09.7]} 82. Kf1
{[%clk 0:00:13.9]} 82... Qf3+ {[%clk 0:00:10.5]} 83. Ke1 {[%clk 0:00:15]} 83...
Qe3+ {[%clk 0:00:11.2]} 84. Kf1 {[%clk 0:00:16.3]} 84... Qf3+ {[%clk 0:00:10.9]}
85. Kg1 {[%clk 0:00:17.4]} 85... Qg3+ {[%clk 0:00:11.9]} 86. Kf1 {[%clk
0:00:18.8]} 86... Qf3+ {[%clk 0:00:12.7]} 1/2-1/2

[Event "GrandPrix_29.05"]
[Site "Chess.com"]
[Date "2020.05.29"]
[Round "3"]
[White "Baron_von_Koenig"]
[Black "Aliakbarov_Anar"]
[Result "1/2-1/2"]
[WhiteElo "2170"]
[BlackElo "2109"]
[TimeControl "600+2"]
[EndTime "10:31:19 PDT"]
[Termination "Game drawn by agreement"]

1. Nc3 {[%clk 0:10:01.9]} 1... e5 {[%clk 0:09:47.4]} 2. Nf3 {[%clk 0:10:01.9]}
2... Nc6 {[%clk 0:09:42.2]} 3. d4 {[%clk 0:10:02.9]} 3... exd4 {[%clk
0:09:39.2]} 4. Nxd4 {[%clk 0:10:04]} 4... Nf6 {[%clk 0:09:38.6]} 5. Bg5 {[%clk
0:10:04.1]} 5... Bb4 {[%clk 0:09:32.2]} 6. Nxc6 {[%clk 0:10:04.2]} 6... bxc6
{[%clk 0:09:29.8]} 7. Qd4 {[%clk 0:10:04.7]} 7... c5 {[%clk 0:08:53.4]} 8. Qe5+
{[%clk 0:07:46]} 8... Kf8 {[%clk 0:07:05.7]} 9. a3 {[%clk 0:07:24]} 9... Bxc3+
{[%clk 0:06:19.4]} 10. Qxc3 {[%clk 0:07:23.5]} 10... d6 {[%clk 0:06:20.4]} 11.
e4 {[%clk 0:06:50.9]} 11... h6 {[%clk 0:06:06.5]} 12. Bh4 {[%clk 0:05:54.6]}
12... Bb7 {[%clk 0:05:44.6]} 13. Bxf6 {[%clk 0:05:54.9]} 13... Qxf6 {[%clk
0:05:27.3]} 14. Qxf6 {[%clk 0:05:55.7]} 14... gxf6 {[%clk 0:05:29.2]} 15. f3
{[%clk 0:05:57.1]} 15... a5 {[%clk 0:04:50.1]} 16. Kf2 {[%clk 0:05:28.7]} 16...
Ke7 {[%clk 0:04:35.6]} 17. Bc4 {[%clk 0:05:08.4]} 17... Bc6 {[%clk 0:04:27.3]}
18. a4 {[%clk 0:05:05.7]} 18... Rab8 {[%clk 0:04:25.2]} 19. b3 {[%clk
0:05:06.7]} 19... h5 {[%clk 0:04:24.6]} 20. Rad1 {[%clk 0:04:50.8]} 20... h4
{[%clk 0:04:24.7]} 21. g4 {[%clk 0:04:42]} 21... Bd7 {[%clk 0:04:16.6]} 22. h3
{[%clk 0:04:24.6]} 22... Be6 {[%clk 0:04:16.7]} 23. Bb5 {[%clk 0:04:09.1]} 23...
Rb6 {[%clk 0:04:13.1]} 24. f4 {[%clk 0:04:03]} 24... Bd7 {[%clk 0:03:57.1]} 25.
Bc4 {[%clk 0:03:12.6]} 25... Rb4 {[%clk 0:03:57.2]} 26. Rhe1 {[%clk 0:02:29.6]}
26... Be6 {[%clk 0:03:45.5]} 27. Bb5 {[%clk 0:02:16.2]} 27... Rb8 {[%clk
0:03:29.1]} 28. f5 {[%clk 0:02:12.6]} 28... Bc8 {[%clk 0:02:57]} 29. Rb1 {[%clk
0:02:04.4]} 29... Rd4 {[%clk 0:02:36.9]} 30. Re2 {[%clk 0:02:01]} 30... Bb7
{[%clk 0:02:27.7]} 31. Kf3 {[%clk 0:01:55.1]} 31... d5 {[%clk 0:01:32.6]} 32.
exd5+ {[%clk 0:01:52.3]} 32... Kd6 {[%clk 0:01:33.8]} 33. c4 {[%clk 0:01:50.5]}
33... c6 {[%clk 0:01:09.7]} 34. dxc6 {[%clk 0:01:50.6]} 34... Bxc6+ {[%clk
0:01:06.2]} 35. Bxc6 {[%clk 0:01:29.1]} 35... Kxc6 {[%clk 0:01:06.8]} 36. Re4
{[%clk 0:01:29.9]} 36... Rd3+ {[%clk 0:01:05.8]} 37. Re3 {[%clk 0:01:31]} 37...
Rxe3+ {[%clk 0:01:04]} 38. Kxe3 {[%clk 0:01:31.9]} 38... Re8+ {[%clk 0:00:46.9]}
39. Kd3 {[%clk 0:01:31]} 39... Rd8+ {[%clk 0:00:48.3]} 40. Kc3 {[%clk
0:01:31.9]} 40... Re8 {[%clk 0:00:49.7]} 41. Rd1 {[%clk 0:01:13.9]} 41... Re3+
{[%clk 0:00:45.8]} 42. Rd3 {[%clk 0:01:15]} 42... Re2 {[%clk 0:00:46.4]} 43. Rf3
{[%clk 0:01:13.7]} 43... Rg2 {[%clk 0:00:45.6]} 44. Kd3 {[%clk 0:01:13.8]} 44...
Rb2 {[%clk 0:00:45.7]} 45. Ke4 {[%clk 0:01:14.9]} 45... Re2+ {[%clk 0:00:45.6]}
46. Kf4 {[%clk 0:01:15.8]} 46... Rb2 {[%clk 0:00:37.6]} 47. g5 {[%clk
0:01:15.3]} 47... fxg5+ {[%clk 0:00:36.7]} 48. Kxg5 {[%clk 0:01:15.5]} 48... Kd6
{[%clk 0:00:36.1]} 49. Kf6 {[%clk 0:00:54.7]} 49... Rg2 {[%clk 0:00:35]} 50.
Rd3+ {[%clk 0:00:54.3]} 50... Kc6 {[%clk 0:00:35.9]} 51. Kxf7 {[%clk 0:00:52.2]}
51... Rg3 {[%clk 0:00:37.1]} 52. Rd8 {[%clk 0:00:51.8]} 52... Rxh3 {[%clk
0:00:38.2]} 53. Rh8 {[%clk 0:00:52.9]} 53... Rf3 {[%clk 0:00:31.7]} 54. Rh6+
{[%clk 0:00:49.2]} 54... Kd7 {[%clk 0:00:32.3]} 55. f6 {[%clk 0:00:50.2]} 55...
h3 {[%clk 0:00:33.1]} 56. Rh5 {[%clk 0:00:50.8]} 56... Kd6 {[%clk 0:00:32.5]}
57. Rh4 {[%clk 0:00:48.1]} 57... Ke5 {[%clk 0:00:31.1]} 58. Rh5+ {[%clk
0:00:49.2]} 58... Kd6 {[%clk 0:00:22.5]} 59. Rh6 {[%clk 0:00:39.3]} 59... Ke5
{[%clk 0:00:21.9]} 60. Kg7 {[%clk 0:00:39.4]} 60... Ke6 {[%clk 0:00:19.1]} 61.
f7+ {[%clk 0:00:32.5]} 61... Ke7 {[%clk 0:00:20.1]} 62. f8=Q+ {[%clk 0:00:33]}
62... Rxf8 {[%clk 0:00:21.7]} 63. Rxh3 {[%clk 0:00:33.7]} 63... Rf2 {[%clk
0:00:18.5]} 64. Re3+ {[%clk 0:00:30.4]} 64... Kd6 {[%clk 0:00:19.6]} 65. Kg6
{[%clk 0:00:31.8]} 65... Kc6 {[%clk 0:00:17.1]} 66. Kg5 {[%clk 0:00:32.7]} 66...
Kb6 {[%clk 0:00:14.9]} 67. Kg4 {[%clk 0:00:33.9]} 67... Rf1 {[%clk 0:00:15.4]}
68. Kg3 {[%clk 0:00:35]} 68... Rf6 {[%clk 0:00:15.7]} 69. Rf3 {[%clk 0:00:35.4]}
69... Rg6+ {[%clk 0:00:15.4]} 70. Kf4 {[%clk 0:00:35.8]} 70... Re6 {[%clk
0:00:15.2]} 71. Re3 {[%clk 0:00:35.5]} 71... Rh6 {[%clk 0:00:15.8]} 72. Kf5
{[%clk 0:00:35.3]} 72... Rh5+ {[%clk 0:00:15.7]} 73. Ke6 {[%clk 0:00:33.6]}
73... Rh6+ {[%clk 0:00:15.7]} 74. Kd5 {[%clk 0:00:34.2]} 74... Rh5+ {[%clk
0:00:10.7]} 75. Re5 {[%clk 0:00:22.3]} 75... Rh3 {[%clk 0:00:11.6]} 76. Re6+
{[%clk 0:00:23.5]} 76... Kb7 {[%clk 0:00:12.3]} 77. Kxc5 {[%clk 0:00:23.9]}
77... Rxb3 {[%clk 0:00:13.2]} 78. Re7+ {[%clk 0:00:21.4]} 78... Ka6 {[%clk
0:00:14]} 79. Re6+ {[%clk 0:00:18.3]} 79... Kb7 {[%clk 0:00:15]} 80. Re7+ {[%clk
0:00:17.9]} 80... Ka6 {[%clk 0:00:16]} 81. Kc6 {[%clk 0:00:19]} 81... Rb4 {[%clk
0:00:15.8]} 82. c5 {[%clk 0:00:20.1]} 82... Rxa4 {[%clk 0:00:17.1]} 83. Kc7
{[%clk 0:00:19.5]} 83... Rh4 {[%clk 0:00:16.4]} 84. c6 {[%clk 0:00:18.1]} 84...
Rh6 {[%clk 0:00:14.3]} 85. Re8 {[%clk 0:00:17.2]} 85... Rh7+ {[%clk 0:00:14]}
86. Kd6 {[%clk 0:00:13.9]} 86... Rh6+ {[%clk 0:00:05]} 87. Kd7 {[%clk
0:00:14.5]} 87... Rh7+ {[%clk 0:00:04.7]} 88. Re7 {[%clk 0:00:15.7]} 88... Rh8
{[%clk 0:00:05.1]} 89. c7 {[%clk 0:00:15.3]} 89... Kb7 {[%clk 0:00:06]} 90. Re5
{[%clk 0:00:06.1]} 90... Rh7+ {[%clk 0:00:06.3]} 91. Kd6 {[%clk 0:00:07.1]}
91... Rxc7 {[%clk 0:00:06.8]} 92. Rb5+ {[%clk 0:00:08]} 92... Kc8 {[%clk
0:00:07.9]} 93. Rxa5 {[%clk 0:00:08.9]} 93... Rd7+ {[%clk 0:00:09.1]} 1/2-1/2